Workbook

Sheet برنامج السباق
G1: وقت وتاريخ السباق | H1: 07:30:00 | I1: 2018-08-15
G2: احداثيـــة السبـــــاق | H2: 32.47208 | I2: 45.10011
A4: ت | B4: أسم المتسابق | C4: وقت الوصول | D4: زمن الرحلة | E4: خط العرض | F4: خط الطول | G4: مسافة الرحلة كم | H4: معدل السرعة | I4: النقاط
A5: 1 | B5: المتسابق 1 | C5: 08:52:03 | D5: =C5-$H$1 -> 01:22:03 | E5: 33.263403 | F5: 44.470413 | G5: =ACOS(SIN(RADIANS($H$2))*SIN(RADIANS(E5))+COS(RADIANS($H$2))*COS(RADIANS(E5))*COS(RADIANS($I$2-F5)))*6371 -> 105.8348482 | H5: =G5/(HOUR(D5)+(MINUTE(D5)/60)+(SECOND(D5)/3600))*1000/60 -> 1289.882367 | I5: 100
A6: 2 | B6: المتسابق 2 | C6: 08:52:56 | D6: =C6-$H$1 -> 01:22:56 | E6: 33.261703 | F6: 44.472713 | G6: =ACOS(SIN(RADIANS($H$2))*SIN(RADIANS(E6))+COS(RADIANS($H$2))*COS(RADIANS(E6))*COS(RADIANS($I$2-F6)))*6371 -> 105.558666 | H6: =G6/(HOUR(D6)+(MINUTE(D6)/60)+(SECOND(D6)/3600))*1000/60 -> 1272.813496 | I6: 99
A7: 3 | B7: المتسابق 3 | C7: 08:53:49 | D7: =C7-$H$1 -> 01:23:49 | E7: 33.260003 | F7: 44.475013 | G7: =ACOS(SIN(RADIANS($H$2))*SIN(RADIANS(E7))+COS(RADIANS($H$2))*COS(RADIANS(E7))*COS(RADIANS($I$2-F7)))*6371 -> 105.2825322 | H7: =G7/(HOUR(D7)+(MINUTE(D7)/60)+(SECOND(D7)/3600))*1000/60 -> 1256.104978 | I7: 98
A8: 4 | B8: المتسابق 4 | C8: 08:54:42 | D8: =C8-$H$1 -> 01:24:42 | E8: 33.258303 | F8: 44.477313 | G8: =ACOS(SIN(RADIANS($H$2))*SIN(RADIANS(E8))+COS(RADIANS($H$2))*COS(RADIANS(E8))*COS(RADIANS($I$2-F8)))*6371 -> 105.0064475 | H8: =G8/(HOUR(D8)+(MINUTE(D8)/60)+(SECOND(D8)/3600))*1000/60 -> 1239.745543 | I8: 97
A9: 5 | B9: المتسابق 5 | C9: 08:55:35 | D9: =C9-$H$1 -> 01:25:35 | E9: 33.256603 | F9: 44.479613 | G9: =ACOS(SIN(RADIANS($H$2))*SIN(RADIANS(E9))+COS(RADIANS($H$2))*COS(RADIANS(E9))*COS(RADIANS($I$2-F9)))*6371 -> 104.730412 | H9: =G9/(HOUR(D9)+(MINUTE(D9)/60)+(SECOND(D9)/3600))*1000/60 -> 1223.724386 | I9: 96
A10: 6 | B10: المتسابق 6 | C10: 08:56:28 | D10: =C10-$H$1 -> 01:26:28 | E10: 33.254903 | F10: 44.481913 | G10: =ACOS(SIN(RADIANS($H$2))*SIN(RADIANS(E10))+COS(RADIANS($H$2))*COS(RADIANS(E10))*COS(RADIANS($I$2-F10)))*6371 -> 104.4544264 | H10: =G10/(HOUR(D10)+(MINUTE(D10)/60)+(SECOND(D10)/3600))*1000/60 -> 1208.031146 | I10: 95
A11: 9 | B11: المتسابق 9 | C11: 08:57:21 | D11: =C11-$H$1 -> 01:27:21 | E11: 33.249803 | F11: 44.488813 | G11: =ACOS(SIN(RADIANS($H$2))*SIN(RADIANS(E11))+COS(RADIANS($H$2))*COS(RADIANS(E11))*COS(RADIANS($I$2-F11)))*6371 -> 103.6267724 | H11: =G11/(HOUR(D11)+(MINUTE(D11)/60)+(SECOND(D11)/3600))*1000/60 -> 1186.339696 | I11: 92
A12: 7 | B12: المتسابق 7 | C12: 08:58:14 | D12: =C12-$H$1 -> 01:28:14 | E12: 33.253203 | F12: 44.484213 | G12: =ACOS(SIN(RADIANS($H$2))*SIN(RADIANS(E12))+COS(RADIANS($H$2))*COS(RADIANS(E12))*COS(RADIANS($I$2-F12)))*6371 -> 104.178491 | H12: =G12/(HOUR(D12)+(MINUTE(D12)/60)+(SECOND(D12)/3600))*1000/60 -> 1180.715803 | I12: 94
A13: 8 | B13: المتسابق 8 | C13: 08:59:07 | D13: =C13-$H$1 -> 01:29:07 | E13: 33.251503 | F13: 44.486513 | G13: =ACOS(SIN(RADIANS($H$2))*SIN(RADIANS(E13))+COS(RADIANS($H$2))*COS(RADIANS(E13))*COS(RADIANS($I$2-F13)))*6371 -> 103.9026062 | H13: =G13/(HOUR(D13)+(MINUTE(D13)/60)+(SECOND(D13)/3600))*1000/60 -> 1165.916658 | I13: 93
A14: 10 | B14: المتسابق 10 | C14: 09:00:00 | D14: =C14-$H$1 -> 01:30:00 | E14: 33.248103 | F14: 44.491113 | G14: =ACOS(SIN(RADIANS($H$2))*SIN(RADIANS(E14))+COS(RADIANS($H$2))*COS(RADIANS(E14))*COS(RADIANS($I$2-F14)))*6371 -> 103.3509901 | H14: =G14/(HOUR(D14)+(MINUTE(D14)/60)+(SECOND(D14)/3600))*1000/60 -> 1148.344335 | I14: 91
A15: 11 | B15: المتسابق 11 | C15: 09:52:03 | D15: =C15-$H$1 -> 02:22:03 | E15: 33.246403 | F15: 44.493413 | G15: =ACOS(SIN(RADIANS($H$2))*SIN(RADIANS(E15))+COS(RADIANS($H$2))*COS(RADIANS(E15))*COS(RADIANS($I$2-F15)))*6371 -> 103.0752598 | H15: =G15/(HOUR(D15)+(MINUTE(D15)/60)+(SECOND(D15)/3600))*1000/60 -> 725.626609 | I15: 90
A16: 12 | B16: المتسابق 12 | C16: 11:52:03 | D16: =C16-$H$1 -> 04:22:03 | E16: 33.244703 | F16: 44.495713 | G16: =ACOS(SIN(RADIANS($H$2))*SIN(RADIANS(E16))+COS(RADIANS($H$2))*COS(RADIANS(E16))*COS(RADIANS($I$2-F16)))*6371 -> 102.7995818 | H16: =G16/(HOUR(D16)+(MINUTE(D16)/60)+(SECOND(D16)/3600))*1000/60 -> 392.2899517 | I16: 89
A17: 13 | B17: المتسابق 13 | C17: 43334.514 | D17: =C17-$H$1 -> 43334.2015 | E17: 33.333333 | F17: 44.555555 | G17: =ACOS(SIN(RADIANS($H$2))*SIN(RADIANS(E17))+COS(RADIANS($H$2))*COS(RADIANS(E17))*COS(RADIANS($I$2-F17)))*6371 -> 108.4241199 | H17: =G17/(HOUR(D17)+(MINUTE(D17)/60)+(SECOND(D17)/3600))*1000/60 -> 373.6615275 | I17: 88
A18: 14 | B18: المتسابق 14 | C18: 12:52:03 | D18: =C18-$H$1 -> 05:22:03 | E18: 33.244703 | F18: 44.484213 | G18: =ACOS(SIN(RADIANS($H$2))*SIN(RADIANS(E18))+COS(RADIANS($H$2))*COS(RADIANS(E18))*COS(RADIANS($I$2-F18)))*6371 -> 103.3933466 | H18: =G18/(HOUR(D18)+(MINUTE(D18)/60)+(SECOND(D18)/3600))*1000/60 -> 321.0474976 | I18: 87
A19: 15 | B19: المتسابق 15 | C19: 13:52:03 | D19: =C19-$H$1 -> 06:22:03 | E19: 33.265103 | F19: 44.491113 | G19: =ACOS(SIN(RADIANS($H$2))*SIN(RADIANS(E19))+COS(RADIANS($H$2))*COS(RADIANS(E19))*COS(RADIANS($I$2-F19)))*6371 -> 104.93143 | H19: =G19/(HOUR(D19)+(MINUTE(D19)/60)+(SECOND(D19)/3600))*1000/60 -> 274.6536579 | I19: 86
A20: 16 | B20: المتسابق 16 | C20: 14:52:03 | D20: =C20-$H$1 -> 07:22:03 | E20: 33.263403 | F20: 44.493413 | G20: =ACOS(SIN(RADIANS($H$2))*SIN(RADIANS(E20))+COS(RADIANS($H$2))*COS(RADIANS(E20))*COS(RADIANS($I$2-F20)))*6371 -> 104.6564718 | H20: =G20/(HOUR(D20)+(MINUTE(D20)/60)+(SECOND(D20)/3600))*1000/60 -> 236.7525661 | I20: 85
A21: 20 | B21: المتسابق 20 | C21: 15:52:03 | D21: =C21-$H$1 -> 08:22:03 | E21: 33.256603 | F21: 44.412871 | G21: =ACOS(SIN(RADIANS($H$2))*SIN(RADIANS(E21))+COS(RADIANS($H$2))*COS(RADIANS(E21))*COS(RADIANS($I$2-F21)))*6371 -> 108.3042575 | H21: =G21/(HOUR(D21)+(MINUTE(D21)/60)+(SECOND(D21)/3600))*1000/60 -> 215.7240465 | I21: 81
A22: 17 | B22: المتسابق 17 | C22: 15:52:03 | D22: =C22-$H$1 -> 08:22:03 | E22: 33.261703 | F22: 44.495713 | G22: =ACOS(SIN(RADIANS($H$2))*SIN(RADIANS(E22))+COS(RADIANS($H$2))*COS(RADIANS(E22))*COS(RADIANS($I$2-F22)))*6371 -> 104.3815692 | H22: =G22/(HOUR(D22)+(MINUTE(D22)/60)+(SECOND(D22)/3600))*1000/60 -> 207.9107046 | I22: 84
A23: 22 | B23: المتسابق 22 | C23: 17:52:03 | D23: =C23-$H$1 -> 10:22:03 | E23: 33.253203 | F23: 44.270187 | G23: =ACOS(SIN(RADIANS($H$2))*SIN(RADIANS(E23))+COS(RADIANS($H$2))*COS(RADIANS(E23))*COS(RADIANS($I$2-F23)))*6371 -> 116.4153576 | H23: =G23/(HOUR(D23)+(MINUTE(D23)/60)+(SECOND(D23)/3600))*1000/60 -> 187.1479104 | I23: 79
A24: 19 | B24: المتسابق 19 | C24: 16:52:03 | D24: =C24-$H$1 -> 09:22:03 | E24: 33.258303 | F24: 44.484213 | G24: =ACOS(SIN(RADIANS($H$2))*SIN(RADIANS(E24))+COS(RADIANS($H$2))*COS(RADIANS(E24))*COS(RADIANS($I$2-F24)))*6371 -> 104.6508474 | H24: =G24/(HOUR(D24)+(MINUTE(D24)/60)+(SECOND(D24)/3600))*1000/60 -> 186.1949069 | I24: 82
A25: 21 | B25: المتسابق 21 | C25: 17:52:03 | D25: =C25-$H$1 -> 10:22:03 | E25: 33.254903 | F25: 44.341529 | G25: =ACOS(SIN(RADIANS($H$2))*SIN(RADIANS(E25))+COS(RADIANS($H$2))*COS(RADIANS(E25))*COS(RADIANS($I$2-F25)))*6371 -> 112.2351215 | H25: =G25/(HOUR(D25)+(MINUTE(D25)/60)+(SECOND(D25)/3600))*1000/60 -> 180.4278137 | I25: 80
A26: 18 | B26: المتسابق 18 | C26: 43352.70836 | D26: =C26-$H$1 -> 43352.39586 | E26: 33.260003 | F26: 44.555555 | G26: =ACOS(SIN(RADIANS($H$2))*SIN(RADIANS(E26))+COS(RADIANS($H$2))*COS(RADIANS(E26))*COS(RADIANS($I$2-F26)))*6371 -> 101.3048899 | H26: =G26/(HOUR(D26)+(MINUTE(D26)/60)+(SECOND(D26)/3600))*1000/60 -> 177.7174841 | I26: 83
